Workbook

Sheet Rate
B2: Розрахунок витрат за кредитом "Кредитна лінія "Бонус"
C3: Вихідні параметри
B4: Вид продукту | E4: Бонус | AG4: факт/360 | AH4: 1
B5: Приблизна дата видачі кредиту | E5: 2024-10-01 | H5: Метод нарахування процентних доходів | L5: факт/факт | AG5: факт/факт | AH5: 2
B6: Строк кредитування | E6: 36 | H6: Термін дії кредиту відповідає строку дії картки | L6: Ні
B7: Сума кредиту, грн | E7: 25000 | F7: від 25000 грн | AG7: Бонус | AH7: 3 | AI7: 12
B8: Процентна ставка, % річних | E8: 32
B9: Місяць початку зниження ліміту | E9: 13 | AG9: Тепле житло | AH9: 5
B10: Заставна вартість предмету застави/іпотеки
B11: Загальні витрати по кредиту | E11: =D57+J18+L18-E7 -> 17504.00202 | I11: поля підлягають коригуванню | J11: поля підлягають коригуванню
A13: Місяці | B13: Дата | C13: Кількість днів для розрахунку %% для вказаного періоду | D13: Сума платежу за розрахунковий період | E13: У тому числі: | T13: Орієнтовна реальна процентна ставка, % | U13: Орієнтовна денна процентна ставка, % | V13: Орієнтовна загальна вартість кредиту, грн | Y13: Кількість днів для розрахунку %% - для 1го періоду | Z13: Кількість днів для розрахунку %% - для останнього періоду | AA13: Кількість днів для розрахунку %% - до 20 числа | AB13: Кількість днів для розрахунку %% - після 20 числа | AC13: 360/365/366 | AD13: 1й та останній міс | AE13: Інші періоди | AG13: =DAY(B20) -> 1 | AH13: =MONTH(B20) -> 10 | AI13: =YEAR(B20) -> 2024
E14: Погашення основної суми кредиту | F14: Проценти за користування кредитом | G14: Залишок заборгованості | H14: Платежі за надані додаткові та/або супутні послуги на користь банку, у тому числі за: | N14: Плажеті за надані додаткові та/або супутні послуги на користь третіх осіб, пов'язаних із: | AG14: =IF(OR($E$4="Картки",$E$4="Кредитка"),IF($L$6="Так",IF($AH$13>=25,(E6+1)+1,E6+1),E$6),IF($L$6="Так",IF($AH$13>=25,(E6+1)+1,E6+1),E$6)) -> 36 | AH14: срок по карточкам в зависимости от параметра
AG15: =IF(OR($E$4="Картки",$E$4="Кредитка"),IF($L$6="Так",IF($AH$13>=25,(E9+1)+1,E9+1),E9),IF($L$6="Так",IF($AH$13>=25,(E9+1)+1,E9+1),E9)) -> 13 | AH15: срок начала погашения
AG16: =DAY(X20) -> 31 | AH16: =MONTH(X20) -> 10 | AI16: =YEAR(X20) -> 2024
H17: Комісія за надання кредиту, % | I17: Розрахунково касове обслуговування, % | J17: За надання кредиту готівкою, % | K17: За безготівкове перерахування кредитних коштів, % | L17: Розрахунково-касове обслуговування карткового рахунку з оформленням картки, грн | M17: Інші послуги банку (зазначається на назва послуги), грн | N17: Страхуванням працездатності, % | O17: Страхуванням цивільної відповідальності, грн | P17: Страхуванням іпотеки/ застави (КАСКО), % | Q17: послугами нотаріусів, грн | R17: послугами оцінювача, грн | S17: Іншими послугами третіх осіб, грн
A18: Всього: | B18: X | C18: X | D18: X | E18: =SUM(E21:E56) -> 25000 | F18: =SUM(F21:F56) -> 16747.00202 | G18: X | H18: =SUM(H20:H117) -> 0 | I18: =SUM(I20:I117) -> 0 | J18: =SUM(J20:J44) -> 257 | K18: =SUM(K20:K117) -> 250 | L18: =SUM(L20:L117) -> 500 | M18: =SUM(M20:M117) -> 0 | N18: =SUM(N20:N117) -> 0 | O18: =SUM(O20:O117) -> 0 | P18: =SUM(P20:P44) -> 0 | Q18: =SUM(Q20:Q117) -> 0 | R18: =SUM(R20:R117) -> 0 | S18: =SUM(S20:S117) -> 0
H19: 0 | I19: 0 | J19: 0.01 | K19: 0.01 | L19: 500
A20: 0 | B20: =$E$5 -> 2024-10-01 | D20: =H18+I18+K18+L18+M18+N18+O18+P18+Q18+R18+S18-E7 -> -24250 | E20: =IFERROR((IF(B20="","",IF(E$4="Кредитка",IF(A20<AG$14,G19*10%,G19),IF(A20<$AG$15,0,G19/($AG$14-A20+1))))),0) -> 0 | F20: =IF(A20>$E$6+1,"",IF(A20<>$E$6,AD19+AE19,AD19+AE19+AD20+AE20)) -> 0 | G20: =E7 -> 25000 | H20: =G20*H19 -> 0 | I20: =(G20*I19) -> 0 | J20: =(G20*J19)+7 -> 257 | K20: =IF((G20*K19)>=1500,1500,IF((G20*K19)>=50,(G20*K19),50)) -> 250 | L20: =L19 -> 500 | M20: =M19 -> 0 | N20: =$N$19*G20 -> 0 | O20: =$O$19*G20 -> 0 | P20: =E10*P19 -> 0 | Q20: =Q19 -> 0 | R20: =L7*E6/12 -> 0 | S20: =S19 -> 0 | T20: =XIRR(D20:D56,B20:B56) -> 0.3917984903 | U20: =(F57+L20+MAX(K20,J20))/E7/SUM(C21:C56)*100% -> 0.0006223645163 | V20: =SUM(D57,H18,I18,J18,L18,M18,N18,O18,P18,Q18,R18,S18) -> 42504.00202 | X20: =EOMONTH(B20,0) -> 2024-10-31 | Y20: =IF(B20=$E$5,X20-B20+1,0) -> 31 | Z20: =IF(A20=0,0,IF(A20=$E$6,DAY(B20)-1,0)) -> 0 | AA20: =IF(OR(Y20<>0,Z20<>0),0,20) -> 0 | AB20: =IF(AA20=0,0,DAY(X20)-AA20) -> 0 | AC20: =CHOOSE(VLOOKUP($L$5,$AG$4:$AH$5,2,0),36000,IF(MONTH(DATE(YEAR(B20),2,29))=2,36600,36500)) -> 36600 | AD20: =IF(Y20<>0,$G20*$E$8*Y20/AC20,IF(Z20<>0,$G19*$E$8*Z20/AC20,0)) -> 677.5956284 | AE20: =IF(AD20<>0,0,(G19*$E$8*AA20/AC20)+(G20*$E$8*AB20/AC20)) -> 0 | AF20: =$E$5 -> 2024-10-01
A21: =IF(A20>=$E$6,"",A20+1) -> 1 | B21: =IF(A21=$E$6,IF(WEEKDAY(AF21,2)=7,AF21+1,IF(WEEKDAY(AF21,2)=6,AF21+2,AF21)),AF21) -> 2024-11-20 | C21: =EOMONTH(B20,0)-B20+1 -> 31 | D21: =IF(B21="","",E21+F21+I21+M21+N21+O21+P21+Q21+R21+S21) -> 677.5956284 | E21: 0 | F21: 677.5956284 | G21: =IF(B21="","",G20-E21) -> 25000 | X21: 2024-11-30 | Y21: 0 | Z21: 0 | AA21: 20 | AB21: 10 | AC21: 36600 | AD21: 0 | AE21: 655.7377049 | AF21: =IF(A21=E$6,DATE($AI$13,$AH$13+A21,$AG$13-1),IF(A21>$E$6,"",DATE($AI$13,$AH$13+A21,"20"))) -> 2024-11-20
A22: 2 | B22: 2024-12-20 | C22: =DAY(EOMONTH(B21,0)) -> 30 | D22: 655.7377049 | E22: 0 | F22: 655.7377049 | G22: 25000 | X22: 2024-12-31 | Y22: 0 | Z22: 0 | AA22: 20 | AB22: 11 | AC22: 36600 | AD22: 0 | AE22: 677.5956284 | AF22: =IF(A22=E$6,DATE($AI$13,$AH$13+A22,$AG$13-1),IF(A22>$E$6,"",DATE($AI$13,$AH$13+A22,"20"))) -> 2024-12-20
A23: 3 | B23: 2025-01-20 | C23: =DAY(EOMONTH(B22,0)) -> 31 | D23: 677.5956284 | E23: 0 | F23: 677.5956284 | G23: 25000 | X23: 2025-01-31 | Y23: 0 | Z23: 0 | AA23: 20 | AB23: 11 | AC23: 36500 | AD23: 0 | AE23: 679.4520548 | AF23: 2025-01-20
A24: 4 | B24: 2025-02-20 | C24: 31 | D24: 679.4520548 | E24: 0 | F24: 679.4520548 | G24: 25000 | X24: 2025-02-28 | Y24: 0 | Z24: 0 | AA24: 20 | AB24: 8 | AC24: 36500 | AD24: 0 | AE24: 613.6986301 | AF24: 2025-02-20
A25: 5 | B25: 2025-03-20 | C25: 28 | D25: 613.6986301 | E25: 0 | F25: 613.6986301 | G25: 25000 | X25: 2025-03-31 | Y25: 0 | Z25: 0 | AA25: 20 | AB25: 11 | AC25: 36500 | AD25: 0 | AE25: 679.4520548 | AF25: 2025-03-20
A26: 6 | B26: 2025-04-20 | C26: 31 | D26: 679.4520548 | E26: 0 | F26: 679.4520548 | G26: 25000 | X26: 2025-04-30 | Y26: 0 | Z26: 0 | AA26: 20 | AB26: 10 | AC26: 36500 | AD26: 0 | AE26: 657.5342466 | AF26: 2025-04-20
A27: 7 | B27: 2025-05-20 | C27: 30 | D27: 657.5342466 | E27: 0 | F27: 657.5342466 | G27: 25000 | X27: 2025-05-31 | Y27: 0 | Z27: 0 | AA27: 20 | AB27: 11 | AC27: 36500 | AD27: 0 | AE27: 679.4520548 | AF27: 2025-05-20
A28: 8 | B28: 2025-06-20 | C28: 31 | D28: 679.4520548 | E28: 0 | F28: 679.4520548 | G28: 25000 | X28: 2025-06-30 | Y28: 0 | Z28: 0 | AA28: 20 | AB28: 10 | AC28: 36500 | AD28: 0 | AE28: 657.5342466 | AF28: 2025-06-20
A29: 9 | B29: 2025-07-20 | C29: 30 | D29: 657.5342466 | E29: 0 | F29: 657.5342466 | G29: 25000 | X29: 2025-07-31 | Y29: 0 | Z29: 0 | AA29: 20 | AB29: 11 | AC29: 36500 | AD29: 0 | AE29: 679.4520548 | AF29: 2025-07-20
A30: 10 | B30: 2025-08-20 | C30: 31 | D30: 679.4520548 | E30: 0 | F30: 679.4520548 | G30: 25000 | X30: 2025-08-31 | Y30: 0 | Z30: 0 | AA30: 20 | AB30: 11 | AC30: 36500 | AD30: 0 | AE30: 679.4520548 | AF30: 2025-08-20
A31: =IF(A30>=$E$6,"",A30+1) -> 11 | B31: 2025-09-20 | C31: =DAY(EOMONTH(B30,0)) -> 31 | D31: 679.4520548 | E31: =IFERROR((IF(B31="","",IF(E$4="Кредитка",IF(A31<AG$14,G30*10%,G30),IF(A31<$AG$15,0,G30/($AG$14-A31+1))))),0) -> 0 | F31: =IF(A31>$E$6+1,"",IF(A31<>$E$6,AD30+AE30,AD30+AE30+AD31+AE31)) -> 679.4520548 | G31: =IF(B31="","",G30-E31) -> 25000 | X31: 2025-09-30 | Y31: 0 | Z31: 0 | AA31: 20 | AB31: 10 | AC31: 36500 | AD31: =IF(Y31<>0,$G31*$E$8*Y31/AC31,IF(Z31<>0,$G30*$E$8*Z31/AC31,0)) -> 0 | AE31: =IF(AD31<>0,0,(G30*$E$8*AA31/AC31)+(G31*$E$8*AB31/AC31)) -> 657.5342466 | AF31: 2025-09-20
A32: =IF(A31>=$E$6,"",A31+1) -> 12 | B32: 2025-10-20 | C32: =DAY(EOMONTH(B31,0)) -> 30 | D32: =IF(B32="","",E32+F32+I32+M32+N32+O32+P32+Q32+R32+S32) -> 657.5342466 | E32: =IFERROR((IF(B32="","",IF(E$4="Кредитка",IF(A32<AG$14,G31*10%,G31),IF(A32<$AG$15,0,G31/($AG$14-A32+1))))),0) -> 0 | F32: =IF(A32>$E$6+1,"",IF(A32<>$E$6,AD31+AE31,AD31+AE31+AD32+AE32)) -> 657.5342466 | G32: =IF(B32="","",G31-E32) -> 25000 | X32: =EOMONTH(B32,0) -> 2025-10-31 | Y32: =IF(B32=$E$5,X32-B32+1,0) -> 0 | Z32: =IF(A32=0,0,IF(A32=$E$6,DAY(B32)-1,0)) -> 0 | AA32: =IF(OR(Y32<>0,Z32<>0),0,20) -> 20 | AB32: =IF(AA32=0,0,DAY(X32)-AA32) -> 11 | AC32: =CHOOSE(VLOOKUP($L$5,$AG$4:$AH$5,2,0),36000,IF(MONTH(DATE(YEAR(B32),2,29))=2,36600,36500)) -> 36500 | AD32: =IF(Y32<>0,$G32*$E$8*Y32/AC32,IF(Z32<>0,$G31*$E$8*Z32/AC32,0)) -> 0 | AE32: =IF(AD32<>0,0,(G31*$E$8*AA32/AC32)+(G32*$E$8*AB32/AC32)) -> 679.4520548 | AF32: 2025-10-20
A33: 13 | B33: 2025-11-20 | C33: 31 | D33: 1721.118721 | E33: 1041.666667 | F33: 679.4520548 | G33: 23958.33333 | X33: 2025-11-30 | Y33: 0 | Z33: 0 | AA33: 20 | AB33: 10 | AC33: 36500 | AD33: 0 | AE33: 648.4018265 | AF33: 2025-11-20
A34: 14 | B34: 2025-12-20 | C34: 30 | D34: 1690.068493 | E34: 1041.666667 | F34: 648.4018265 | G34: 22916.66667 | X34: 2025-12-31 | Y34: 0 | Z34: 0 | AA34: 20 | AB34: 11 | AC34: 36500 | AD34: 0 | AE34: 641.0958904 | AF34: 2025-12-20
A35: 15 | B35: 2026-01-20 | C35: 31 | D35: 1682.762557 | E35: 1041.666667 | F35: 641.0958904 | G35: 21875 | X35: 2026-01-31 | Y35: 0 | Z35: 0 | AA35: 20 | AB35: 11 | AC35: 36500 | AD35: 0 | AE35: 612.7853881 | AF35: 2026-01-20
A36: 16 | B36: 2026-02-20 | C36: 31 | D36: 1654.452055 | E36: 1041.666667 | F36: 612.7853881 | G36: 20833.33333 | X36: 2026-02-28 | Y36: 0 | Z36: 0 | AA36: 20 | AB36: 8 | AC36: 36500 | AD36: 0 | AE36: 529.6803653 | AF36: 2026-02-20
A37: 17 | B37: 2026-03-20 | C37: 28 | D37: 1571.347032 | E37: 1041.666667 | F37: 529.6803653 | G37: 19791.66667 | X37: 2026-03-31 | Y37: 0 | Z37: 0 | AA37: 20 | AB37: 11 | AC37: 36500 | AD37: 0 | AE37: 556.1643836 | AF37: 2026-03-20
A38: 18 | B38: 2026-04-20 | C38: 31 | D38: 1597.83105 | E38: 1041.666667 | F38: 556.1643836 | G38: 18750 | X38: 2026-04-30 | Y38: 0 | Z38: 0 | AA38: 20 | AB38: 10 | AC38: 36500 | AD38: 0 | AE38: 511.4155251 | AF38: 2026-04-20
A39: 19 | B39: 2026-05-20 | C39: 30 | D39: 1553.082192 | E39: 1041.666667 | F39: 511.4155251 | G39: 17708.33333 | X39: 2026-05-31 | Y39: 0 | Z39: 0 | AA39: 20 | AB39: 11 | AC39: 36500 | AD39: 0 | AE39: 499.543379 | AF39: 2026-05-20
A40: 20 | B40: 2026-06-20 | C40: 31 | D40: 1541.210046 | E40: 1041.666667 | F40: 499.543379 | G40: 16666.66667 | X40: 2026-06-30 | Y40: 0 | Z40: 0 | AA40: 20 | AB40: 10 | AC40: 36500 | AD40: 0 | AE40: 456.6210046 | AF40: 2026-06-20
A41: 21 | B41: =IF(A41=$E$6,IF(WEEKDAY(AF41,2)=7,AF41+1,IF(WEEKDAY(AF41,2)=6,AF41+2,AF41)),AF41) -> 2026-07-20 | C41: =DAY(EOMONTH(B40,0)) -> 30 | D41: =IF(B41="","",E41+F41+I41+M41+N41+O41+P41+Q41+R41+S41) -> 1498.287671 | E41: =IFERROR((IF(B41="","",IF(E$4="Кредитка",IF(A41<AG$14,G40*10%,G40),IF(A41<$AG$15,0,G40/($AG$14-A41+1))))),0) -> 1041.666667 | F41: =IF(A41>$E$6+1,"",IF(A41<>$E$6,AD40+AE40,AD40+AE40+AD41+AE41)) -> 456.6210046 | G41: =IF(B41="","",G40-E41) -> 15625 | X41: 2026-07-31 | Y41: 0 | Z41: 0 | AA41: 20 | AB41: 11 | AC41: 36500 | AD41: 0 | AE41: 442.9223744 | AF41: 2026-07-20
A42: 22 | B42: 2026-08-20 | C42: 31 | D42: 1484.589041 | E42: 1041.666667 | F42: 442.9223744 | G42: 14583.33333 | X42: 2026-08-31 | Y42: 0 | Z42: 0 | AA42: 20 | AB42: 11 | AC42: 36500 | AD42: 0 | AE42: 414.6118721 | AF42: 2026-08-20
A43: 23 | B43: 2026-09-20 | C43: 31 | D43: 1456.278539 | E43: 1041.666667 | F43: 414.6118721 | G43: 13541.66667 | X43: 2026-09-30 | Y43: 0 | Z43: 0 | AA43: 20 | AB43: 10 | AC43: 36500 | AD43: 0 | AE43: 374.4292237 | AF43: 2026-09-20
A44: 24 | B44: 2026-10-20 | C44: 30 | D44: 1416.09589 | E44: 1041.666667 | F44: 374.4292237 | G44: 12500 | X44: 2026-10-31 | Y44: 0 | Z44: 0 | AA44: 20 | AB44: 11 | AC44: 36500 | AD44: =IF(Y44<>0,$G44*$E$8*Y44/AC44,IF(Z44<>0,$G43*$E$8*Z44/AC44,0)) -> 0 | AE44: =IF(AD44<>0,0,(G43*$E$8*AA44/AC44)+(G44*$E$8*AB44/AC44)) -> 357.9908676 | AF44: 2026-10-20
A45: 25 | B45: 2026-11-20 | C45: 31 | D45: 1399.657534 | E45: 1041.666667 | F45: 357.9908676 | G45: 11458.33333 | X45: =EOMONTH(B45,0) -> 2026-11-30 | Y45: =IF(B45=$E$5,X45-B45+1,0) -> 0 | Z45: =IF(A45=0,0,IF(A45=$E$6,DAY(B45)-1,0)) -> 0 | AA45: =IF(OR(Y45<>0,Z45<>0),0,20) -> 20 | AB45: =IF(AA45=0,0,DAY(X45)-AA45) -> 10 | AC45: =CHOOSE(VLOOKUP($L$5,$AG$4:$AH$5,2,0),36000,IF(MONTH(DATE(YEAR(B45),2,29))=2,36600,36500)) -> 36500 | AD45: =IF(Y45<>0,$G45*$E$8*Y45/AC45,IF(Z45<>0,$G44*$E$8*Z45/AC45,0)) -> 0 | AE45: =IF(AD45<>0,0,(G44*$E$8*AA45/AC45)+(G45*$E$8*AB45/AC45)) -> 319.6347032 | AF45: =IF(A45=E$6,DATE($AI$13,$AH$13+A45,$AG$13-1),IF(A45>$E$6,"",DATE($AI$13,$AH$13+A45,"20"))) -> 2026-11-20
A46: 26 | B46: 2026-12-20 | C46: 30 | D46: 1361.30137 | E46: 1041.666667 | F46: 319.6347032 | G46: 10416.66667 | X46: 2026-12-31 | Y46: 0 | Z46: 0 | AA46: 20 | AB46: 11 | AC46: 36500 | AD46: 0 | AE46: 301.369863 | AF46: 2026-12-20
A47: 27 | B47: 2027-01-20 | C47: 31 | D47: 1343.03653 | E47: 1041.666667 | F47: 301.369863 | G47: 9375 | X47: 2027-01-31 | Y47: 0 | Z47: 0 | AA47: 20 | AB47: 11 | AC47: 36500 | AD47: 0 | AE47: 273.0593607 | AF47: 2027-01-20
A48: 28 | B48: 2027-02-20 | C48: 31 | D48: 1314.726027 | E48: 1041.666667 | F48: 273.0593607 | G48: 8333.333333 | X48: 2027-02-28 | Y48: 0 | Z48: 0 | AA48: 20 | AB48: 8 | AC48: 36500 | AD48: 0 | AE48: 222.8310502 | AF48: 2027-02-20
A49: 29 | B49: 2027-03-20 | C49: 28 | D49: 1264.497717 | E49: 1041.666667 | F49: 222.8310502 | G49: 7291.666667 | X49: 2027-03-31 | Y49: 0 | Z49: 0 | AA49: 20 | AB49: 11 | AC49: 36500 | AD49: 0 | AE49: 216.4383562 | AF49: 2027-03-20
A50: 30 | B50: 2027-04-20 | C50: 31 | D50: 1258.105023 | E50: 1041.666667 | F50: 216.4383562 | G50: 6250 | X50: 2027-04-30 | Y50: 0 | Z50: 0 | AA50: 20 | AB50: 10 | AC50: 36500 | AD50: 0 | AE50: 182.6484018 | AF50: 2027-04-20
A51: 31 | B51: 2027-05-20 | C51: 30 | D51: 1224.315068 | E51: 1041.666667 | F51: 182.6484018 | G51: 5208.333333 | X51: 2027-05-31 | Y51: 0 | Z51: 0 | AA51: 20 | AB51: 11 | AC51: 36500 | AD51: 0 | AE51: 159.8173516 | AF51: 2027-05-20
A52: 32 | B52: 2027-06-20 | C52: 31 | D52: 1201.484018 | E52: 1041.666667 | F52: 159.8173516 | G52: 4166.666667 | X52: 2027-06-30 | Y52: 0 | Z52: 0 | AA52: 20 | AB52: 10 | AC52: 36500 | AD52: 0 | AE52: 127.8538813 | AF52: 2027-06-20
A53: 33 | B53: 2027-07-20 | C53: 30 | D53: 1169.520548 | E53: 1041.666667 | F53: 127.8538813 | G53: 3125 | X53: 2027-07-31 | Y53: 0 | Z53: 0 | AA53: 20 | AB53: 11 | AC53: 36500 | AD53: 0 | AE53: 103.196347 | AF53: 2027-07-20
A54: 34 | B54: 2027-08-20 | C54: 31 | D54: 1144.863014 | E54: 1041.666667 | F54: 103.196347 | G54: 2083.333333 | X54: 2027-08-31 | Y54: 0 | Z54: 0 | AA54: 20 | AB54: 11 | AC54: 36500 | AD54: 0 | AE54: 74.88584475 | AF54: 2027-08-20
A55: 35 | B55: 2027-09-20 | C55: 31 | D55: 1116.552511 | E55: 1041.666667 | F55: 74.88584475 | G55: 1041.666667 | X55: 2027-09-30 | Y55: 0 | Z55: 0 | AA55: 20 | AB55: 10 | AC55: 36500 | AD55: 0 | AE55: 45.66210046 | AF55: 2027-09-20
A56: 36 | B56: =IF(A56=$E$6,IF(WEEKDAY(AF56,2)=7,AF56+1,IF(WEEKDAY(AF56,2)=6,AF56+2,AF56)),AF56) -> 2027-09-30 | C56: =IF(DAY(E17)=1,DAY(EOMONTH(B43,0)),DAY(EOMONTH(B43,0))+DAY(B56)) -> 60 | D56: =IF(B56="","",E56+F56+I56+M56+N56+O56+P56+Q56+R56+S56) -> 1087.328767 | E56: =IFERROR((IF(B56="","",IF(E$4="Кредитка",IF(A56<AG$14,G55*10%,G55),IF(A56<$AG$15,0,G55/($AG$14-A56+1))))),0) -> 1041.666667 | F56: =IF((DAY(E5)=1)+(DAY(E17)=2),AD55+AE55,IF(A56>$E$6+1,"",IF(A56<>$E$6,AD55+AE55,AD55+AE55+AD56+AE56))) -> 45.66210046 | G56: =IF(B56="","",G55-E56) -> 0 | X56: 2027-09-30 | Y56: 0 | Z56: 29 | AA56: 0 | AB56: 0 | AC56: 36500 | AD56: 26.48401826 | AE56: 0 | AF56: 2027-09-30
A57: Усього: | D57: =SUM(D21:D56) -> 41747.00202 | E57: =SUM(E21:E56) -> 25000 | F57: =SUM(F21:F56) -> 16747.00202
A59: Всі платежі в Таблиці обчислення орієнтовної загальної вартості кредиту та орієнтовної реальної річної процентної ставки (далі - Таблиця) наведені у гривні. Наведена Таблиця є репрезентативною та базується на обраних позичальником умовах кредитування, та на припущенні, що кредит позичальником буде отримано в повному обсязі відповідно до суми, встановленої кредитним договором, а погашення кредиту буде проводитись відповідно до графіку, визначеного кредитним договором, кредитний договір залишатиметься дійсним протягом всього строку кредитування, а Банк і позичальник виконають свої обов’язки на умовах та у строки, визначені в кредитному договорі. Орієнтовна реальна річна процентна ставка обчислена на основі припущення, щокредитні кошти готівкою та процентна ставка та інші платежі за додаткові та супутні послуги Банку залишатимуться незмінними та застосовуватимуться протягом строку дії кредитного договору. Орієнтовна вартість додаткової / супутньої послуги третіх осіб визначається Банком за аналогічними, вже укладеними договорами про споживчий кредит за попередні три місяці, або у разі відсутності таких договорів за середньою вартістю такої послуги, визначеною Банком за результатами аналізу вартості послуг, що пропонуються щонайменше трьома постачальниками на ринку таких послуг. Використання інших способів надання кредиту та/або зміна інших умов кредитування можуть мати наслідком застосування іншої реальної річної процентної ставки для позичальника. Протягом строку дії кредитного договору значення орієнтовної реальної річної процентної ставки може змінюватися як в сторону збільшення, так і в сторону зменшення. У цьому випадку зміни до Таблиці не вносяться (якщо таке не вимагає одна зі сторін).
